fUSD/lending_fUSD_20250930
["ID","MTS","AMOUNT","RATE_DAILY","PERIOD"]
[388547187,1759236805640,-252.87939096,0.00021369,2]
[388547188,1759236805656,-433.15060904,0.00021369,2]
[388547189,1759236805666,-500.0,0.00021369,2]
[388547190,1759236805677,-201.24939096,0.00021369,2]
[388547191,1759236805689,-2500.0,0.00021369,2]
[388547192,1759236805838,-568.747205,0.00019452,2]
[388547193,1759236805848,-1291.78,0.00020821,2]
[388547194,1759236805858,-3141.562095,0.00021095,2]
[388547195,1759236805873,-2089.29999996,0.00021095,2]
[388547196,1759236806881,-845.63539038,0.00016886,2]
[388547197,1759236806892,-291.75347228,0.00019178,2]
[388547198,1759236807014,-1000.0898523,0.00019178,2]
[388547199,1759236807038,-1000.0,0.00019178,2]
[388547200,1759236807051,-1331.15667542,0.00019178,2]
[388547201,1759236807061,-151.0,0.00019178,2]
[388547202,1759236807071,-1014.810462,0.00019178,2]
[388547203,1759236807081,-568.747205,0.00019178,2]
[388547204,1759236807091,-500.0,0.00019178,2]
[388547205,1759236807100,-151.0,0.00019178,2]
[388547206,1759236807110,-1014.810462,0.00019178,2]
[388547207,1759236807119,-568.747205,0.00019452,2]
[388547208,1759236807129,-1417.68712058,0.00019452,2]
[388547209,1759236807145,-799.0448,0.00019452,2]
[388547210,1759236807839,-523.831959,0.00019178,2]
[388547211,1759236807851,-2581.248041,0.00019178,2]
[388547212,1759236807864,-500.0,0.00019178,2]
[388547213,1759236807873,-296.405019,0.00019178,2]
[388547214,1759236807882,-1014.810462,0.00019178,2]
[388547215,1759236807892,-287.723159,0.00019178,2]
[388547216,1759236807902,-531.95,0.00019178,2]
[388547217,1759236807913,-500.0,0.00019178,2]
[388547218,1759236807923,-1406.26807942,0.00019452,2]
[388547219,1759236807934,-151.0,0.00019452,2]
[388547220,1759236807944,-151.0,0.00019452,2]
[388547221,1759236807955,-1014.810462,0.00019452,2]
[388547222,1759236807965,-568.747205,0.00019452,2]
[388547223,1759236807975,-1014.810462,0.00019452,2]
[388547224,1759236807987,-568.747205,0.00019452,2]
[388547225,1759236807998,-500.0,0.00019452,2]
[388547226,1759236808008,-151.0,0.00019452,2]
[388547227,1759236808018,-151.0,0.00019452,2]
[388547228,1759236808028,-1014.810462,0.00019452,2]
[388547229,1759236808037,-1014.810462,0.00019452,2]
[388547230,1759236808048,-3105.08,0.00019452,2]
[388547231,1759236808057,-500.0,0.00019452,2]
[388547232,1759236808067,-1014.810462,0.00019452,2]
[388547233,1759236808077,-287.723159,0.00019452,2]
[388547234,1759236808088,-1014.810462,0.00019452,2]
[388547235,1759236808098,-287.723159,0.00019452,2]
[388547236,1759236808107,-3623.0,0.00019726,2]
[388547237,1759236808116,-568.747205,0.00019726,2]
[388547238,1759236808125,-568.747205,0.00019726,2]
[388547239,1759236808134,-151.0,0.00019726,2]
[388547240,1759236808144,-192.06778137,0.00019726,2]
[388547241,1759236808153,-151.0,0.00019726,2]
[388547242,1759236808163,-568.747205,0.00019726,2]
[388547243,1759236808173,-1014.810462,0.00019726,2]
[388547244,1759236808183,-500.0,0.00019726,2]
[388547245,1759236808192,-259.42284971,0.00019726,2]
[388547246,1759236808209,-309.32436029,0.00019726,2]
[388547247,1759236808218,-1014.810462,0.00019726,2]
[388547248,1759236808228,-151.0,0.00019726,2]
[388547249,1759236808237,-151.0,0.00019726,2]
[388547250,1759236808246,-3105.08,0.00019726,2]
[388547251,1759236808254,-1014.810462,0.00019726,2]
[388547252,1759236808262,-402.2,0.00019726,2]
[388547253,1759236808271,-1014.810462,0.00019726,2]
[388547254,1759236808279,-1014.810462,0.00019726,2]
[388547255,1759236808288,-1014.810462,0.00019726,2]
[388547256,1759236808300,-3623.0,0.0002,2]
[388547257,1759236808309,-500.0,0.0002,2]
[388547258,1759236808318,-3105.08,0.0002,2]
[388547259,1759236808328,-3623.0,0.00020273,2]
[388547260,1759236808338,-500.0,0.00020273,2]
[388547261,1759236808348,-3105.08,0.00020273,2]
[388547262,1759236808358,-3623.0,0.00020547,2]
[388547263,1759236808368,-500.0,0.00020547,2]
[388547264,1759236808377,-3105.08,0.00020547,2]
[388547265,1759236808387,-3623.0,0.00020821,2]
[388547266,1759236808397,-500.0,0.00020821,2]
[388547267,1759236808407,-3105.08,0.00020821,2]
[388547268,1759236808417,-501.70790504,0.00021095,2]
[388547269,1759236808428,-1291.78,0.00021095,2]
[388547270,1759236808439,-3623.0,0.00021095,2]
[388547271,1759236808449,-500.0,0.00021095,2]
[388547272,1759236808459,-3105.08,0.00021095,2]
[388547273,1759236808470,-5754.64060904,0.00021369,2]
[388547274,1759236808480,-518.83,0.00021369,2]
[388547275,1759236808491,-7304.97,0.00021369,2]
[388547276,1759236808501,-5771.21,0.00021369,2]
[388547277,1759236808511,-1411.3,0.00021369,2]
[388547278,1759236808522,-980.63,0.00021369,2]
[388547279,1759236808531,-538.51,0.00021369,2]
[388547280,1759236808540,-3656.45,0.00021369,2]
[388547281,1759236808555,-900.85,0.00021369,2]
[388547282,1759236808565,-500.0,0.00021369,2]
[388547283,1759236808577,-500.0,0.00021369,2]
[388547284,1759236808587,-3495.87,0.00021369,2]
[388547285,1759236808597,-1539.27,0.00021369,2]
[388547286,1759236808606,-1212.58,0.00021369,2]
[388547287,1759236808615,-1284.53,0.00021369,2]
[388547288,1759236808624,-2614.82,0.00021369,2]
[388547289,1759236808634,-20621.41,0.00021369,2]
[388547290,1759236808643,-500.0,0.00021369,2]
[388547291,1759236808654,-500.0,0.00021369,2]
[388547292,1759236808663,-945.74,0.00021369,2]
[388547293,1759236808672,-691.97,0.00021369,2]
[388547294,1759236808683,-1404.11,0.00021369,2]
[388547295,1759236808693,-500.0,0.00021369,2]
[388547296,1759236808705,-500.0,0.00021369,2]
[388547297,1759236808715,-500.0,0.00021369,2]
[388547298,1759236808725,-2841.81,0.00021369,2]
[388547299,1759236808735,-5307.21,0.00021369,2]
[388547300,1759236808744,-7393.85974179,0.00021369,2]
[388547301,1759236808804,-287.723159,0.00019726,2]
[388547302,1759236808814,-4822.71946323,0.00021369,2]
[388547303,1759236808833,-461.08232634,0.00021369,2]
[388547304,1759236808844,-3964.48314527,0.00021369,2]
[388547305,1759236808856,-2343.4,0.00021369,2]
[388547306,1759236808975,-443.37196412,0.00019178,2]
[388547308,1759236832675,770.3,0.00015848,2]
[388547310,1759236849241,-160.0,0.00016662,2]
[388547311,1759236849265,-109.55067101,0.00016694,2]
[388547312,1759236854945,-269.55067101,0.00016694,2]
[388547313,1759236859331,-250.0,0.00016694,2]
[388547314,1759236859353,-19.55067101,0.00016694,2]
[388547315,1759236862102,-151.34798697,0.00016694,2]
[388547316,1759236862123,-118.20268404,0.00016694,2]
[388547317,1759236865717,-269.55067101,0.00016694,2]
[388547318,1759236866812,2000.0,0.00025041,120]
[388547319,1759236867162,-148.23334621,0.00016694,2]
[388547320,1759236867186,-121.3173248,0.00016694,2]
[388547321,1759236869281,500.0,0.00025952,120]
[388547322,1759236869371,-269.55067101,0.00016694,2]
[388547323,1759236870540,-109.13200419,0.00016694,2]
[388547324,1759236870565,-160.41866682,0.00016694,2]
[388547325,1759236872539,-269.55067101,0.00016693,2]
[388547326,1759236874328,-30.44932899,0.00016693,2]
[388547327,1759236874353,-239.10134202,0.00016694,2]
[388547328,1759236875968,-100.47999116,0.00016694,2]
[388547329,1759236875994,-70.77000884,0.00016694,2]
[388547330,1759236876912,-225.91,0.00016694,2]
[388547332,1759236881159,-203.31999116,0.00016694,2]
[388547333,1759236881184,-66.23067985,0.00016694,2]
[388547334,1759236882360,-269.55067101,0.00016694,2]
[388547335,1759236883339,-289.89695092,0.00016694,2]
[388547336,1759236883363,-88.78572428,0.00016694,2]
[388547355,1759237350024,237.0,0.00025871,120]
[388547358,1759237405020,2037.079354,0.00025999,120]
[388547359,1759237413662,500.0,0.0002516,120]
[388547365,1759237653969,414.88,0.00025596,120]
[388547372,1759237823315,169.93,0.00016545,2]
[388547385,1759237832101,-171.25,0.00016712,2]
[388547386,1759237832111,-216.72336019,0.0001676,2]
[388547387,1759237832121,-3320.59552422,0.00016823,2]
[388547388,1759237832130,-3511.63455844,0.000169,2]
[388547389,1759237832139,-1200.0,0.00016935,2]
[388547390,1759237832148,-2790.0,0.00016986,2]
[388547391,1759237832159,-250.0,0.00017,2]
[388547392,1759237832168,-700.0,0.00017,2]
[388547393,1759237832178,-9086.95948257,0.00017015,2]
[388547394,1759237832204,-8889.9402145,0.00017015,2]
[388547397,1759237832232,-800.83009947,0.00017015,2]
[388547399,1759237832244,-945.76384075,0.00017015,2]
[388547403,1759237832276,-1621.94596358,0.00017015,2]
[388547464,1759237838255,-1133.5324,0.00017015,2]
[388547478,1759237839900,-10354.67101054,0.00017015,2]
[388547479,1759237839909,-3693.50328556,0.00017024,2]
[388547480,1759237839920,-151.0,0.00017025,2]
[388547481,1759237839930,-197.23200617,0.00017025,2]
[388547482,1759237839939,-286.81571492,0.00017025,2]
[388547483,1759237839949,-379.0,0.00017033,2]
[388547484,1759237839958,-156.15351833,0.00017033,2]
[388547485,1759237839970,-535.98670126,0.00017033,2]
[388547486,1759237839991,-500.0,0.00017033,2]
[388547487,1759237840003,-500.0,0.00017033,2]
[388547488,1759237840014,-431.20098861,0.00017033,2]
[388547489,1759237840028,-68.79901139,0.00017033,2]
[388547490,1759237840039,-500.0,0.00017033,2]
[388547491,1759237840048,-355.99522471,0.00017033,2]
[388547492,1759237840058,-500.0,0.00017033,2]
[388547493,1759237840068,-500.0,0.00017033,2]
[388547494,1759237840077,-500.0,0.00017033,2]
[388547495,1759237840087,-500.0,0.00017033,2]
[388547496,1759237840095,-500.0,0.00017033,2]
[388547497,1759237840104,-500.0,0.00017033,2]
[388547498,1759237840113,-500.0,0.00017033,2]
[388547499,1759237840122,-500.0,0.00017033,2]
[388547500,1759237840131,-500.0,0.00017033,2]
[388547501,1759237840141,-500.0,0.00017033,2]
[388547502,1759237840150,-500.0,0.00017033,2]
[388547503,1759237840160,-500.0,0.00017033,2]
[388547504,1759237840169,-500.0,0.00017033,2]
[388547505,1759237840178,-500.0,0.00017033,2]
[388547506,1759237840188,-47351.02367797,0.00017035,2]
[388547507,1759237840198,-414.88,0.00017064,2]
[388547508,1759237840209,-200.0,0.00017066,2]
[388547509,1759237840218,-958.09,0.00017091,2]
[388547510,1759237840227,-150.0,0.000171,2]
[388547512,1759237840237,-150.0,0.00017126,7]
[388547514,1759237840246,-153.8,0.00017164,2]
[388547515,1759237840255,-250.0,0.00017164,2]
[388547517,1759237840265,-237.46339719,0.0001728,2]
[388547519,1759237840274,-786.56055587,0.00017298,2]
[388547521,1759237840283,-2124.84127231,0.00017368,2]
[388547523,1759237840292,-1686.0,0.0001737,2]
[388547524,1759237840301,-5168.64733083,0.00017371,2]
[388547525,1759237840311,-1031.28390856,0.00017378,2]
[388547526,1759237840323,-4137.36342227,0.00017378,2]
[388547527,1759237840332,-2124.84127231,0.00017379,2]
[388547528,1759237840341,-2124.84127231,0.00017382,2]
[388547529,1759237840351,-257.0,0.00017383,2]
[388547530,1759237840360,-2124.84127231,0.00017394,2]
[388547531,1759237840370,-5168.64733083,0.00017403,2]
[388547532,1759237840379,-5168.64733083,0.00017415,2]
[388547533,1759237840388,-5168.64733083,0.00017415,2]
[388547534,1759237840397,-2124.84127231,0.0001742,2]
[388547535,1759237840411,-721.13797523,0.00017441,2]
[388547536,1759237840478,-413.86202477,0.00017441,2]
[388547537,1759237840487,-1552.81286209,0.00017442,2]
[388547538,1759237840499,-572.02841022,0.00017442,2]
[388547539,1759237840508,-1208.03408969,0.00017453,2]
[388547541,1759237840532,-3960.61324114,0.00017453,2]
[388547542,1759237840542,-2124.84127231,0.00017454,2]
[388547543,1759237840551,-446.0,0.00017457,2]
[388547544,1759237840561,-5168.64733083,0.00017462,2]
[388547545,1759237840570,-150.0,0.00017507,2]
[388547546,1759237840580,-150.0,0.00017507,2]
[388547547,1759237840589,-150.0,0.00017507,2]
[388547548,1759237840599,-150.0,0.00017507,2]
[388547549,1759237840608,-215.0,0.00017528,2]
[388547550,1759237840618,-861.0,0.00017541,2]
[388547551,1759237840629,-1444.0,0.00017614,2]
[388547552,1759237840639,-177.9,0.00017644,2]
[388547553,1759237840648,-318.0,0.00017684,2]
[388547554,1759237840658,-9638.3,0.00017728,2]
[388547555,1759237840667,-6733.62,0.00017728,2]
[388547556,1759237840678,-150.99,0.00017728,2]
[388547557,1759237840688,-4616.17,0.00017728,2]
[388547558,1759237840698,-505.2,0.00017728,2]
[388547559,1759237840707,-999.99,0.00017728,2]
[388547560,1759237840717,-299.99,0.00017728,4]
[388547561,1759237840726,-499.99,0.00017728,2]
[388547562,1759237840735,-400.0,0.00017743,2]
[388547563,1759237840745,-211.0,0.00017772,2]
[388547564,1759237840753,-770.3,0.00017829,2]
[388547565,1759237840763,-1117.43,0.00017979,2]
[388547566,1759237840772,-500.0,0.0001798,2]
[388547567,1759237840781,-160.0,0.0001798,2]
[388547568,1759237840790,-601.3376128,0.0001798,2]
[388547569,1759237840799,-500.0,0.0001798,2]
[388547570,1759237840809,-350.35585209,0.0001798,2]
[388547571,1759237840819,-500.0,0.0001798,2]
[388547572,1759237840828,-500.0,0.0001798,2]
[388547573,1759237840838,-500.0,0.0001798,2]
[388547574,1759237840847,-500.0,0.0001798,2]
[388547575,1759237840856,-500.0,0.0001798,2]
[388547576,1759237840865,-9000.0,0.0001798,2]
[388547577,1759237840874,-500.0,0.0001798,2]
[388547578,1759237840883,-500.0,0.0001798,2]
[388547579,1759237840893,-322.6107,0.0001798,2]
[388547580,1759237840903,-7965.41053268,0.0001798,2]
[388547581,1759237840911,-500.0,0.0001798,2]
[388547582,1759237840920,-500.0,0.0001798,2]
[388547583,1759237840929,-500.0,0.0001798,2]
[388547584,1759237840938,-500.0,0.0001798,2]
[388547585,1759237840947,-500.0,0.0001798,2]
[388547586,1759237840957,-500.0,0.0001798,2]
[388547587,1759237840966,-500.0,0.0001798,2]
[388547588,1759237840975,-500.0,0.0001798,2]
[388547589,1759237840984,-500.0,0.0001798,2]
[388547590,1759237840993,-500.0,0.0001798,2]
[388547591,1759237841002,-500.0,0.0001798,2]
[388547592,1759237841011,-500.0,0.0001798,2]
[388547593,1759237841020,-500.0,0.0001798,2]
[388547594,1759237841029,-500.0,0.0001798,2]
[388547595,1759237841038,-500.0,0.0001798,2]
[388547596,1759237841047,-500.0,0.0001798,2]
[388547597,1759237841056,-500.0,0.0001798,2]
[388547598,1759237841066,-500.0,0.0001798,2]
[388547599,1759237841076,-500.0,0.0001798,2]
[388547600,1759237841085,-193.59761467,0.0001798,2]
[388547601,1759237841094,-500.0,0.0001798,2]
[388547602,1759237841104,-500.0,0.0001798,2]
[388547603,1759237841113,-500.0,0.0001798,2]
[388547604,1759237841122,-500.0,0.0001798,2]
[388547605,1759237841131,-614.8569658,0.0001798,2]
[388547606,1759237841140,-200.0,0.0001798,2]
[388547607,1759237841149,-200.0,0.0001798,2]
[388547608,1759237841158,-200.0,0.0001798,2]
[388547609,1759237841167,-200.0,0.0001798,2]
[388547610,1759237841177,-2299.99999601,0.00018,2]
[388547611,1759237841186,-238.92,0.00018,2]
[388547612,1759237841195,-700.0,0.00018,3]
[388547613,1759237841204,-1637.10842887,0.00018035,2]
[388547614,1759237841214,-1300.0,0.00018098,2]
[388547615,1759237841223,-1117.43,0.00018253,2]
[388547616,1759237841233,-150.0,0.0001828,2]
[388547617,1759237841242,-668.63,0.00018291,2]
[388547618,1759237841251,-480.844721,0.00018366,2]
[388547619,1759237841260,-250.0,0.00018366,2]
[388547620,1759237841269,-1117.43,0.00018527,2]
[388547621,1759237841279,-202.22,0.00018533,2]
[388547622,1759237841288,-1680.0,0.0001859,2]
[388547623,1759237841299,-694.2885697,0.0001863,2]
[388547624,1759237841314,-566.75,0.0001863,2]
[388547625,1759237841324,-1117.43,0.00018801,2]
[388547626,1759237841333,-400.0,0.00018839,2]
[388547627,1759237841343,-700.0,0.00019,4]
[388547628,1759237841353,-1117.43,0.00019075,2]
[388547629,1759237841657,-535.92338489,0.00019077,2]
[388547630,1759237841679,-166.21368757,0.00019078,2]
[388547631,1759237841688,-739.9309666,0.00019078,2]
[388547632,1759237841699,-1000.0,0.00019078,2]
[388547633,1759237841709,-5000.0,0.00019078,2]
[388547634,1759237841720,-177.9,0.000191,2]
[388547635,1759237841730,-2937.96,0.00019151,2]
[388547636,1759237841739,-500.0,0.00019173,2]
[388547637,1759237841749,-573.81938189,0.00019173,2]
[388547638,1759237841758,-500.0,0.00019173,2]
[388547639,1759237841767,-500.0,0.00019173,2]
[388547640,1759237841776,-375.14728708,0.00019173,2]
[388547641,1759237841786,-209.27128997,0.00019177,2]
[388547642,1759237841795,-261.70944872,0.00019177,2]
[388547643,1759237841805,-500.0,0.00019177,2]
[388547644,1759237841815,-182.54252618,0.00019177,2]
[388547645,1759237841824,-500.0,0.00019177,2]
[388547646,1759237841834,-250.65262449,0.00019177,2]
[388547647,1759237841843,-500.0,0.00019178,2]
[388547648,1759237841852,-543.6,0.00019178,2]
[388547649,1759237841861,-928.38,0.00019178,2]
[388547650,1759237841870,-928.38,0.00019178,2]
[388547651,1759237841879,-500.0,0.00019178,2]
[388547652,1759237841888,-500.0,0.00019178,2]
[388547653,1759237841897,-500.0,0.00019178,2]
[388547654,1759237841907,-500.0,0.00019178,2]
[388547655,1759237841916,-500.0,0.00019178,2]
[388547656,1759237841926,-500.0,0.00019178,2]
[388547657,1759237841935,-500.0,0.00019178,2]
[388547658,1759237841944,-500.0,0.00019178,2]
[388547659,1759237841953,-1124.83,0.00019178,2]
[388547660,1759237841963,-1124.83,0.00019178,2]
[388547661,1759237841972,-431.96165594,0.00019178,2]
[388547662,1759237841982,-691.83,0.00019178,2]
[388547663,1759237841991,-500.0,0.00019178,2]
[388547664,1759237842000,-500.0,0.00019178,2]
[388547665,1759237842010,-500.0,0.00019178,2]
[388547666,1759237842019,-500.0,0.00019178,2]
[388547667,1759237842028,-500.0,0.00019178,2]
[388547668,1759237842038,-582.9,0.00019178,2]
[388547669,1759237842047,-500.0,0.00019178,2]
[388547670,1759237842055,-500.0,0.00019178,2]
[388547671,1759237842065,-500.0,0.00019178,2]
[388547672,1759237842075,-500.0,0.00019178,2]
[388547673,1759237842084,-500.0,0.00019178,2]
[388547674,1759237842093,-500.0,0.00019178,2]
[388547675,1759237842103,-500.0,0.00019178,2]
[388547676,1759237842112,-500.0,0.00019178,2]
[388547677,1759237842121,-1539.59,0.00019178,2]
[388547678,1759237842131,-2846.88,0.00019178,2]
[388547679,1759237842140,-500.0,0.00019178,2]
[388547680,1759237842149,-500.0,0.00019178,2]
[388547681,1759237842158,-500.0,0.00019178,2]
[388547682,1759237842167,-586.6,0.00019178,2]
[388547683,1759237842178,-1270.77,0.00019178,2]
[388547684,1759237842188,-500.0,0.00019178,2]
[388547685,1759237842197,-500.0,0.00019178,2]
[388547686,1759237842207,-500.0,0.00019178,2]
[388547687,1759237842217,-500.0,0.00019178,2]
[388547688,1759237842226,-500.0,0.00019178,2]
[388547689,1759237842236,-551.58,0.00019178,2]
[388547690,1759237842245,-500.0,0.00019178,2]
[388547691,1759237842255,-500.0,0.00019178,2]
[388547692,1759237842264,-476.55221058,0.00019178,2]
[388547693,1759237842273,-500.0,0.00019178,2]
[388547694,1759237842282,-1133.96,0.00019178,2]
[388547695,1759237842291,-500.0,0.00019178,2]
[388547696,1759237842301,-1148.97,0.00019178,2]
[388547697,1759237842312,-500.0,0.00019178,2]
[388547698,1759237842322,-500.0,0.00019178,2]
[388547699,1759237842332,-671.59,0.00019178,2]
[388547700,1759237842342,-500.0,0.00019178,2]
[388547701,1759237842351,-2013.49,0.00019178,2]
[388547702,1759237842360,-500.0,0.00019178,2]
[388547703,1759237842370,-551.89,0.00019178,2]
[388547704,1759237842378,-500.0,0.00019178,2]
[388547705,1759237842387,-500.0,0.00019178,2]
[388547706,1759237842397,-500.0,0.00019178,2]
[388547707,1759237842412,-500.0,0.00019178,2]
[388547708,1759237842422,-1013.91,0.00019178,2]
[388547709,1759237842432,-1027.24,0.00019178,2]
[388547710,1759237842441,-500.0,0.00019178,2]
[388547711,1759237842450,-500.0,0.00019178,2]
[388547712,1759237842460,-500.0,0.00019178,2]
[388547713,1759237842469,-500.0,0.00019178,2]
[388547714,1759237842478,-500.0,0.00019178,2]
[388547715,1759237842488,-500.0,0.00019178,2]
[388547716,1759237842497,-500.0,0.00019178,2]
[388547717,1759237842507,-500.0,0.00019178,2]
[388547718,1759237842516,-1141.7,0.00019178,2]
[388547719,1759237842525,-500.0,0.00019178,2]
[388547720,1759237842534,-500.0,0.00019178,2]
[388547721,1759237842543,-500.0,0.00019178,2]
[388547722,1759237842553,-500.0,0.00019178,2]
[388547723,1759237842563,-500.0,0.00019178,2]
[388547724,1759237842572,-500.0,0.00019178,2]
[388547725,1759237842582,-500.0,0.00019178,2]
[388547726,1759237842591,-500.0,0.00019178,2]
[388547727,1759237842601,-587.08,0.00019178,2]
[388547728,1759237842610,-500.0,0.00019178,2]
[388547729,1759237842621,-500.0,0.00019178,2]
[388547730,1759237842631,-500.0,0.00019178,2]
[388547731,1759237842642,-500.0,0.00019178,2]
[388547732,1759237842651,-500.0,0.00019178,2]
[388547733,1759237842662,-566.79,0.00019178,2]
[388547734,1759237842671,-500.0,0.00019178,2]
[388547735,1759237842680,-500.0,0.00019178,2]
[388547736,1759237842690,-500.0,0.00019178,2]
[388547737,1759237842699,-500.0,0.00019178,2]
[388547738,1759237842708,-685.42,0.00019178,2]
[388547739,1759237842719,-500.0,0.00019178,2]
[388547740,1759237842728,-2330.58,0.00019178,2]
[388547741,1759237842738,-1093.65,0.00019178,2]
[388547742,1759237842746,-1687.8,0.00019178,2]
[388547743,1759237842756,-500.0,0.00019178,2]
[388547744,1759237842765,-500.0,0.00019178,2]
[388547745,1759237842774,-191.6706264,0.00019178,2]
[388547746,1759237842784,-500.0,0.00019178,2]
[388547747,1759237842793,-500.0,0.00019178,2]
[388547748,1759237842802,-710.39,0.00019178,2]
[388547749,1759237842812,-3924.78,0.00019178,2]
[388547750,1759237842822,-500.0,0.00019178,2]
[388547751,1759237842832,-500.0,0.00019178,2]
[388547752,1759237842842,-500.0,0.00019178,2]
[388547753,1759237842853,-500.0,0.00019178,2]
[388547754,1759237842863,-500.0,0.00019178,2]
[388547755,1759237842873,-500.0,0.00019178,2]
[388547756,1759237842884,-500.0,0.00019178,2]
[388547757,1759237842893,-500.0,0.00019178,2]
[388547758,1759237842902,-500.0,0.00019178,2]
[388547759,1759237842913,-500.0,0.00019178,2]
[388547760,1759237842922,-989.47,0.00019178,2]
[388547761,1759237842931,-500.0,0.00019178,2]
[388547762,1759237842940,-500.0,0.00019178,2]
[388547763,1759237842950,-1232.34,0.00019178,2]
[388547764,1759237842961,-500.0,0.00019178,2]
[388547765,1759237842971,-580.93,0.00019178,2]
[388547766,1759237842981,-545.45,0.00019178,2]
[388547767,1759237842991,-529.39090554,0.00019178,2]
[388547768,1759237843001,-1300.2,0.00019178,2]
[388547769,1759237843012,-500.0,0.00019178,2]
[388547770,1759237843023,-500.0,0.00019178,2]
[388547771,1759237843032,-2794.08,0.00019178,2]
[388547772,1759237843043,-1942.27,0.00019178,2]
[388547773,1759237843052,-500.0,0.00019178,2]
[388547774,1759237843062,-639.42511236,0.00019178,2]
[388547775,1759237843072,-500.0,0.00019178,2]
[388547776,1759237843081,-672.26,0.00019178,2]
[388547777,1759237843091,-1431.9,0.00019178,2]
[388547778,1759237843099,-1477.09,0.00019178,2]
[388547779,1759237843109,-653.7,0.00019178,2]
[388547780,1759237843119,-2258.68,0.00019178,2]
[388547781,1759237843129,-228.2351966,0.00019178,2]
[388547782,1759237843138,-1068.35,0.00019178,2]
[388547783,1759237843147,-1128.17,0.00019178,2]
[388547784,1759237843156,-500.0,0.00019178,2]
[388547785,1759237843165,-1963.48,0.00019178,2]
[388547786,1759237843175,-704.45,0.00019178,2]
[388547787,1759237843185,-500.0,0.00019178,2]
[388547788,1759237843194,-3255.33,0.00019178,2]
[388547789,1759237843204,-500.0,0.00019178,2]
[388547790,1759237843213,-500.0,0.00019178,2]
[388547791,1759237843223,-500.0,0.00019178,2]
[388547792,1759237843233,-500.0,0.00019178,2]
[388547793,1759237843243,-1152.88,0.00019178,2]
[388547794,1759237843252,-500.0,0.00019178,2]
[388547795,1759237843262,-500.0,0.00019178,2]
[388547796,1759237843273,-1000.45,0.00019178,2]
[388547797,1759237843284,-500.0,0.00019178,2]
[388547798,1759237843295,-703.97,0.00019178,2]
[388547799,1759237843305,-500.0,0.00019178,2]
[388547800,1759237843315,-500.0,0.00019178,2]
[388547801,1759237843325,-1922.07,0.00019178,2]
[388547802,1759237843335,-982.28,0.00019178,2]
[388547803,1759237843345,-603.92,0.00019178,2]
[388547804,1759237843355,-1412.82,0.00019178,2]
[388547805,1759237843364,-500.0,0.00019178,2]
[388547806,1759237843374,-500.0,0.00019178,2]
[388547807,1759237843384,-500.0,0.00019178,2]
[388547808,1759237843393,-500.0,0.00019178,2]
[388547809,1759237843406,-500.0,0.00019178,2]
[388547810,1759237843415,-500.0,0.00019178,2]
[388547811,1759237843425,-500.0,0.00019178,2]
[388547812,1759237843434,-1009.74,0.00019178,2]
[388547814,1759237843444,-500.0,0.00019178,2]
[388547816,1759237843454,-500.0,0.00019178,2]
[388547817,1759237843463,-1437.84,0.00019178,2]
[388547819,1759237843473,-2323.26,0.00019178,2]
[388547821,1759237843484,-500.0,0.00019178,2]
[388547822,1759237843493,-500.0,0.00019178,2]